Cogmind - Beta 14 @@@ ROGUE MODE // 2024.09.29 @ 15:17:02 Player: H3-RMN Result: Destroyed by P-80 Master with Gamma Rifle Performance ------------- Evolutions (6) 3000 Regions Visited (15) 3000 Robots Destroyed (178) 890 Value Destroyed (8742) 8742 Prototype IDs (48) 960 Alien Tech Used (0) 0 Bonus (10137) 10137 TOTAL SCORE: 26729 Bonus ------- High Alert Combat Kills 1492 Follower Combat Kills 3565 Network Hubs Disabled 600 Delivered SUBCON Basin 2000 Registered with UFD 300 Met Warlord at Base 500 MAIN.C Attacked Warlord 500 Warlord Defense Kills 1514 Built Enhanced Grunts 300 A7 Reached Mainframe 300 Met R17 at Cetus 500 Friendly Fire -1434 Cogmind --------- Core Integrity 0/1150 Matter 96/300 Energy 59/100 System Corruption 29% Temperature Cool (0) Movement Treading (330) Ox2 Location -4/Warlord Parts ------- > --- POWER (2) -------- (None) > --- PROPULSION (6) --- Armored Medium Treads Armored Medium Treads > --- UTILITY (9) ------ Cargo Storage Unit Experimental Signal Interpreter Experimental Target Analyzer > --- WEAPON (2) ------- Vortex Cannon > --- INVENTORY (30) --- Cooled Antigrav System Cooled Antigrav System Improved Energy Well (400) Experimental Matter Compressor (500) Deep Structural Scanner Makeshift Sensor Array Surveybot 17 Chip Quantum Capacitor Improved Transmission Jammer Experimental Focal Shield Experimental Thermal Shield Experimental EM Disruption Field Authchip [Propulsion] Dispersion Rifle Advanced Variable Charge Gun Long-range Proton Cannon Compact HERF Cannon Neutron Cannon Vortex Cannon (26) CPS Tube (1) Peak State ------------ > --- POWER ------------ Quantum Reactor Quantum Reactor > --- PROPULSION ------- Centrium Heavy Treads Centrium Heavy Treads Centrium Heavy Treads > --- UTILITY ---------- Advanced Coolant Injector Cargo Storage Unit Experimental Signal Interpreter Improved Transmission Jammer Centrium Medium Armor Plating Advanced Hacking Suite Experimental Hacking Suite Tech Extrapolator > --- WEAPON ----------- HERF Cannon Advanced KE Penetrator > --- INVENTORY -------- Antimatter Reactor Centrium Heavy Treads Advanced Cooling System Improved Energy Well Improved Energy Well High-capacity Matter Pod Deep Structural Scanner Makeshift Sensor Array Surveybot 17 Chip Advanced Targeting Computer Experimental Phase Shifter Experimental Utility Shielding Centrium Medium Armor Plating Centrium Medium Armor Plating Experimental Thermal Shield Experimental EM Disruption Field Advanced Hardlight Generator Advanced Shield Generator Authchip [Propulsion] Force Rifle Advanced Variable Charge Gun Advanced Variable Charge Gun Disruptor Cannon Neutron Cannon Neutron Cannon Advanced KE Penetrator Improved Plasma Cutter CPS Tube Multitool [Rating: 158] Favorites ----------- Power Quantum Reactor Engine Improved Deuterium Engine Power Core Nuclear Core Reactor Quantum Reactor Propulsion Centrium Heavy Treads Treads Centrium Heavy Treads Leg Enhanced Biometal Leg Wheel Armored Wheel Hover Unit Cooled Antigrav System Flight Unit VTOL Module Utility Tech Extrapolator Device Makeshift Sensor Array Storage Cargo Storage Unit Processor Tech Extrapolator Hackware Advanced Hacking Suite Protection Centrium Medium Armor Plating Weapon Neutron Cannon Energy Gun Force Rifle Energy Cannon Neutron Cannon Ballistic Gun Advanced KE Penetrator Ballistic Cannon Hypervelocity Mass Driver Special Weapon CPS Tube Slashing Weapon Power Sword Piercing Weapon Plasma Lance Special Melee Weapon Advanced Datajack Build | -11 -10 -10 -10 -8 -8 -6 -6 -6 -6 -6 -5 -4 -4 -4 -4 ------- Run | Yrd Mat Min Sub Rec Scr Fac Ext Cet Arc Hub Fac Fac Upp Upp War Slots Evolved 12 | . . . . . . 8 . . . . 2 2 . . . Power 1 | . . . . . . 1 . . . . . . . . . Propulsion 4 | . . . . . . 4 . . . . . . . . . Utility 7 | . . . . . . 3 . . . . 2 2 . . . Weapon . | . . . . . . . . . . . . . . . . Parts Attached 455 | 7 3 2 1 2 18 60 47 25 15 81 39 92 15 8 40 Power 28 | 1 . 1 . . 2 6 2 3 . 2 . 7 2 1 1 Engine 5 | 1 . . . . 1 . 2 1 . . . . . . . Core 10 | . . 1 . . 1 6 . . . . . . 2 . . Reactor 13 | . . . . . . . . 2 . 2 . 7 . 1 1 Propulsion 67 | 2 . . 1 1 6 12 9 6 1 2 . 11 2 4 10 Treads 31 | 1 . . 1 . 1 . 4 4 1 1 . 6 1 4 7 Leg 2 | . . . . . . . . 1 . 1 . . . . . Wheel 17 | 1 . . . 1 3 . 5 1 . . . 5 1 . . Hover 2 | . . . . . . . . . . . . . . . 2 Flight 15 | . . . . . 2 12 . . . . . . . . 1 Utility 248 | 1 3 1 . 1 4 31 27 5 5 61 31 53 10 3 12 Device 171 | . 1 . . . 1 21 15 2 4 46 25 38 8 2 8 Storage 8 | 1 1 . . . 2 . 3 . . . . . . . 1 Processor 9 | . . . . . 1 3 . . . 1 1 1 1 . 1 Hackware 9 | . . . . . . 4 . . . 1 2 2 . . . Protection 51 | . 1 1 . 1 . 3 9 3 1 13 3 12 1 1 2 Artifact . | . . . . . . . . . . . . . . . . Weapon 112 | 3 . . . . 6 11 9 11 9 16 8 21 1 . 17 Energy Gun 27 | 1 . . . . 2 . 3 4 4 6 1 2 1 . 3 Energy Cannon 20 | . . . . . . . . 2 1 2 2 8 . . 5 Ballistic Gun 23 | 2 . . . . . 1 . 2 3 5 3 6 . . 1 Ballistic Cannon 8 | . . . . . . . . . . . . 2 . . 6 Launcher . | . . . . . . . . . . . . . . . . Special Weapon 24 | . . . . . 2 7 5 3 . 1 2 3 . . 1 Impact Weapon . | . . . . . . . . . . . . . . . . Slashing Weapon 8 | . . . . . 2 3 1 . . 2 . . . . . Piercing Weapon 1 | . . . . . . . . . . . . . . . 1 Special Melee Weapon 1 | . . . . . . . . . 1 . . . . . . Unidentified Prototypes 34 | . . . . . 1 3 2 7 . 6 . 3 . . 12 Corrupted Parts 7 | . . . . . . 2 . . 2 . . 1 . . 2 System Corruption 35 | . . . . . . 6 . . 12 . . 4 . . 13 Parts Lost 46 | . . . . . . 5 8 1 . 1 . 14 3 . 14 Power 11 | . . . . . . 1 1 1 . 1 . 4 2 . 1 Propulsion 16 | . . . . . . 3 6 . . . . 3 1 . 3 Utility 10 | . . . . . . 1 . . . . . 1 . . 8 Weapon 9 | . . . . . . . 1 . . . . 6 . . 2 Highest Loss Streak 14 | . . . . . . 4 4 1 . 1 . 5 3 . 14 To Critical Strikes 1 | . . . . . . . . . . . . . . . 1 Average Slot Usage (%) 83 | . 100 100 100 100 85 88 85 81 72 72 75 78 83 83 78 Engine 1 | . 14 5 . . 1 1 3 1 . . . . . . . Core 5 | . . 8 14 14 12 10 6 . . . . . 7 5 3 Reactor 4 | . . . . . . . . 10 13 13 11 9 2 4 4 Treads 13 | . 14 14 14 14 8 . 13 15 20 19 17 15 9 10 20 Wheel 6 | . 14 14 14 14 16 . 7 12 . . . 1 10 9 . Flight 3 | . . . . . 2 33 11 . . . . . . . . Device 5 | . 7 . . . . 7 3 . 3 4 9 9 9 9 9 Storage 7 | . 14 14 14 14 13 6 6 6 6 6 5 5 5 5 5 Processor 8 | . . . . . 5 12 13 13 13 13 11 10 10 10 9 Hackware 5 | . . . . . . 3 4 . . . 4 12 15 15 14 Protection 4 | . 7 14 14 14 8 . 2 6 1 1 1 3 . . . Energy Gun 1 | . . . . . 1 . 2 8 4 4 1 1 4 5 1 Energy Cannon 1 | . . . . . . . . 2 5 1 3 4 . . 2 Ballistic Gun 7 | . 28 28 28 28 12 . . 1 1 5 4 2 5 5 3 Slashing Weapon 1 | . . . . . . 5 5 . . . . . . . . Peak Build Rating 158 | 6 11 14 30 31 37 59 59 126 127 132 142 158 133 131 148 Average Rating 82 | 4 9 12 15 29 17 49 48 96 122 124 134 142 126 126 133 On Entrance 69 | . 6 11 14 30 12 25 59 53 126 127 128 135 132 127 131 Naked Turns 41 | . . . . . 41 . . . . . . . . . . Heaviest Build 225 | 13 55 58 58 58 66 32 174 202 202 202 207 210 185 187 225 Greatest Support 240 | 10 10 10 10 12 24 41 63 240 240 240 240 240 55 205 205 Greatest Overweight (x) 62 | 1 5 5 5 5 5 2 12 6 1 1 . 60 9 62 5 Average Overweight (x) 1 | . 2 5 5 4 2 . 1 3 . . . 1 6 7 . Largest Inventory Capacity 30 | 8 20 20 20 20 20 10 30 30 30 30 30 30 30 30 30 Average Capacity 23 | 7 14 20 20 20 18 10 15 30 30 30 30 30 30 30 30 Most Carried 30 | 7 20 20 20 20 20 10 30 30 30 30 30 30 30 30 30 Average Carried 21 | 4 13 19 18 19 11 9 13 27 29 29 28 28 29 29 29 Final Capacity 30 | 8 20 20 20 20 10 10 30 30 30 30 30 30 30 30 30 Final Carried 30 | 7 20 20 20 6 10 10 30 30 30 29 30 28 30 30 21 Class Distribution -------------------- 31% | Scavenger-Mutant 23% | Commander-Mutant 18% | Scavenger-Skirmisher 10% | Mutant 9% | Hacker-Mutant 6% | Scavenger-Sprinter Dominant Class ---------------- Mutant | -10/Materials Mutant | -10/Mines Mutant | -10/Subcaves Commander-Mutant | -8/Recycling Commander-Mutant | -8/Scraptown Scavenger-Sprinter | -6/Factory Scavenger-Mutant | -6/Extension Scavenger-Mutant | -6/Cetus Scavenger-Mutant | -6/Archives Scavenger-Mutant | -6/Hub_04(d) Scavenger-Skirmisher | -5/Factory Scavenger-Mutant | -4/Factory Hacker-Mutant | -4/Upper Caves Scavenger-Skirmisher | -4/Upper Caves Scavenger-Skirmisher | -4/Warlord Resources | -11 -10 -10 -10 -8 -8 -6 -6 -6 -6 -6 -5 -4 -4 -4 -4 ----------- Run | Yrd Mat Min Sub Rec Scr Fac Ext Cet Arc Hub Fac Fac Upp Upp War Matter Collected 8143 | 298 . 126 94 104 180 627 626 253 193 1443 786 1847 280 196 1090 Remotely . | . . . . . . . . . . . . . . . . Salvage Created 10540 | 102 . 113 69 166 . 630 1302 52 311 2179 599 3953 409 112 543 Parts 514 | 5 . 9 2 11 . 48 50 8 23 115 41 163 18 4 17 Haulers Intercepted 2 | . . . . . . . 2 . . . . . . . . Recyclers Shooed 20 | 1 . . . . . 1 6 . . 1 . 11 . . . Parts Field Recycled . | . . . . . . . . . . . . . . . . Retrieved Matter . | . . . . . . . . . . . . . . . . Parts Self-Destructed 16 | . . . 16 . . . . . . . . . . . . Prevented 5 | . . . . . . . . . . . . . . 5 . Kills | -11 -10 -10 -10 -8 -8 -6 -6 -6 -6 -6 -5 -4 -4 -4 -4 ------- Run | Yrd Mat Min Sub Rec Scr Fac Ext Cet Arc Hub Fac Fac Upp Upp War Combat Hostiles Destroyed 112 | . . 4 1 4 . 5 9 . . 30 6 38 5 1 9 Melee 8 | . . . . . . 5 2 . . 1 . . . . . Guns 58 | . . 4 1 4 . . 4 . . 21 4 15 4 1 . Cannons 35 | . . . . . . . 1 . . 4 2 19 . . 9 AOE 3 | . . . . . . . . . . 2 . 1 . . . Classes Destroyed 26 | 2 . 2 2 1 . 5 2 . 1 4 1 2 2 . 2 Worker 9 | . . . . . . 3 . . . 3 . 3 . . . Builder 4 | . . . . . . . . . . . 1 3 . . . Tunneler 1 | 1 . . . . . . . . . . . . . . . Hauler 2 | . . . . . . . 2 . . . . . . . . Recycler 17 | 1 . . . . . 1 4 . . 1 1 9 . . . Operator 10 | . . . . . . . . . 9 1 . . . . . Turret 2 | . . . 2 . . . . . . . . . . . . Watcher 18 | . . . . . . 5 1 1 . 3 5 3 . . . Swarmer 7 | . . 2 1 1 . 3 . . . . . . . . . Saboteur 1 | . . . . . . . . . . 1 . . . . . Grunt 36 | . . 2 . 1 . . 5 . . 10 . 15 . . 3 Brawler 5 | . . . . . . 1 . . . . . 2 . . 2 Duelist 1 | . . . . . . . . . . . . 1 . . . Protector 1 | . . . . . . . . . . . . 1 . . . Sentry 11 | . . . . 2 . . 1 . . 4 . 4 . . . Specialist 7 | . . . . . . . . . . 5 . 2 . . . Hunter 9 | . . . . . . . . . . . 1 8 . . . Programmer 15 | . . . . . . 1 1 . . 3 5 4 . . 1 Heavy 2 | . . . . . . . . . . 1 . 1 . . . Behemoth 2 | . . . . . . . 2 . . . . . . . . Lightning 6 | . . . . . . . . . . 6 . . . . . Striker 2 | . . . . . . . . . . . . . . . 2 Executioner 1 | . . . . . . . . . . . . . . . 1 Artisan 1 | . . . 1 . . . . . . . . . . . . Scrapoid 1 | . . . . . . 1 . . . . . . . . . Decomposer 1 | . . . . . . . . . . . . . . 1 . Samaritan 1 | . . . . . . . . . . . . . 1 . . Thug 5 | . . . . . . . . . . . . . 4 . 1 Mutant 2 | . . . . . . . . . . . . . 1 1 . Best Kill Streak 15 | 2 . 1 2 2 . 3 2 1 2 9 2 15 5 1 6 Combat Bots Only 8 | . . 1 1 2 . 3 2 . . 6 2 8 5 1 6 Max Kills in Single Turn 3 | 1 . 1 1 1 . 1 1 1 1 3 2 3 1 1 1 Gunslinging 1 | . . . . . . . . . . 1 . . . . . Exploded 1 | . . . . . . . . . . 1 . 1 . . . Melee 1 | . . . . . . 1 1 . . 1 . . . . . Uniques/NPCs Destroyed 1 | . . . . . . . . 1 . . . . . . . Revision 17 (-6/Cetus) Combat | -11 -10 -10 -10 -8 -8 -6 -6 -6 -6 -6 -5 -4 -4 -4 -4 -------- Run | Yrd Mat Min Sub Rec Scr Fac Ext Cet Arc Hub Fac Fac Upp Upp War Hostile Shots Fired 1476 | . . 6 47 35 . 122 125 18 . 279 52 569 34 2 187 Missed 419 | . . 1 22 13 . 74 45 6 . 61 13 141 11 . 32 Damage Taken 18348 | . . 60 244 329 . 518 1136 363 40 2808 465 7727 357 18 4283 Core 1728 | . . 18 21 83 . 91 117 . . 182 56 426 8 . 726 Absorbed by Shields 1068 | . . . . 19 . 10 248 39 . . . 70 . 16 666 Reduced by Siege Mode 1464 | . . . . . . . . 14 . 377 4 782 . . 287 Redirected to Shielding 176 | . . . . . . . . . . . . 51 . . 125 Ignored by Resistances 3756 | . . . . . . . . . . 2045 335 1270 106 . . Regen/Repaired (Parts) 2884 | . . . . . . . 94 . . . . 2376 . . 414 Core Remaining (%) 74 | 100 . . . . 51 . . . . 54 94 . . . . Volleys Fired 611 | 7 5 14 21 21 . 5 52 11 29 135 52 192 15 15 37 Largest 2 | 2 2 2 2 2 . 1 1 2 2 2 2 2 2 2 2 Hottest 178 | 40 40 40 40 40 . . 80 165 170 125 170 178 127 127 169 Shots Fired 996 | 14 10 28 42 42 . 5 52 20 43 229 86 338 27 16 44 Gun 658 | 14 10 28 42 42 . . 40 8 29 200 55 140 27 16 7 Cannon 316 | . . . . . . . . 8 14 29 31 198 . . 36 Launcher . | . . . . . . . . . . . . . . . . Special 22 | . . . . . . 5 12 4 . . . . . . 1 Kinetic 489 | 14 10 28 42 42 . . . 2 2 132 41 133 12 10 21 Thermal 411 | . . . . . . . 40 14 41 97 45 140 15 6 13 Explosive . | . . . . . . . . . . . . . . . . Electromagnetic 70 | . . . . . . . . . . . . 65 . . 5 Impact 11 | . . . . . . . 11 . . . . . . . . Entropic 4 | . . . . . . . . . . . . . . . 4 Robot Hit Streak 44 | 4 4 5 7 10 . 11 25 12 5 11 6 44 18 24 27 Robot Miss Streak 6 | 2 5 3 3 2 . . 3 1 3 5 4 6 1 1 2 Penetration Max 1 | . . . . . . . . 1 . 1 1 1 1 . . Secondary Targets 6 | . . . . 1 . . . . . 2 . 1 2 . . Max Gunslinging Chain 1 | . . . . 1 . . . . . 1 . 1 1 . . Shots Hit Robots 698 | 8 5 17 24 33 . 30 65 18 28 143 43 223 21 7 33 Core Hits 338 | 3 2 9 10 10 . 14 26 6 15 85 18 108 12 5 15 Critical Kills 23 | . . . . . . . . . 1 8 2 12 . . . Critical Parts Destroyed 43 | . . . . . . . 2 1 1 16 3 20 . . . Critical Strikes 76 | . . . . . . . 5 1 2 24 5 33 . . 6 Destroy 66 | . . . . . . . 1 1 2 24 5 33 . . . Blast 4 | . . . . . . . . . . . . . . . 4 Smash 2 | . . . . . . . 2 . . . . . . . . Sever 2 | . . . . . . . 2 . . . . . . . . Sunder 2 | . . . . . . . . . . . . . . . 2 Melee Attacks 82 | . . . . . . 45 32 . 1 4 . . . . . Impact . | . . . . . . . . . . . . . . . . Slashing 81 | . . . . . . 45 32 . . 4 . . . . . Piercing . | . . . . . . . . . . . . . . . . Sneak Attacks 21 | . . . . . . 7 13 . 1 . . . . . . Combat Hostiles 2 | . . . . . . . 2 . . . . . . . . Follow-up Attacks . | . . . . . . . . . . . . . . . . Damage Inflicted 24938 | 81 49 192 269 367 . 1370 3343 507 978 5419 1473 8251 633 197 1809 Guns 10706 | 81 49 192 269 367 . . 685 257 442 3522 966 2857 633 197 189 Cannons 7915 | . . . . . . . . 250 377 526 507 4635 . . 1620 Explosions 2163 | . . . . . . . . . 159 1327 . 677 . . . Melee 3112 | . . . . . . 1370 1698 . . 44 . . . . . Ramming 84 | . . . . . . . 2 . . . . 82 . . . Kinetic 8508 | 81 49 192 269 367 . . . 110 30 2292 717 2685 321 140 1255 Thermal 9173 | . . . . . . . 685 397 948 1939 756 3890 312 57 189 Explosive . | . . . . . . . . . . . . . . . . Electromagnetic 2887 | . . . . . . . . . . 1144 . 1594 . . 149 Impact 958 | . . . . . . . 958 . . . . . . . . Slashing 3112 | . . . . . . 1370 1698 . . 44 . . . . . Piercing . | . . . . . . . . . . . . . . . . Entropic 216 | . . . . . . . . . . . . . . . 216 Highest Corruption 29 | . . . . . . 6 1 1 10 15 1 6 6 6 29 Average Corruption 3 | . . . . . . 5 1 1 2 5 1 3 6 6 14 Corruption Purged 19 | . . . . . . 6 . . 12 . . 1 . . . Corruption Blocked . | . . . . . . . . . . . . . . . . Effects 149 | . . . . . . 11 4 7 13 35 5 35 18 15 6 Message Errors 42 | . . . . . . 3 2 3 3 7 1 10 5 6 2 Matter Fused 29 | . . . . . . 3 1 . 4 7 1 5 4 2 2 Heat Flow Errors 22 | . . . . . . . 1 1 3 4 1 6 2 4 . Energy Discharges 17 | . . . . . . 3 . 1 1 4 . 5 3 . . Parts Rejected 1 | . . . . . . . . . . 1 . . . . . Data Loss (minor) 15 | . . . . . . . . . 2 4 . 4 3 2 . Data Loss (major) 10 | . . . . . . 2 . . . 2 1 3 1 . 1 Misfires 6 | . . . . . . . . 1 . 1 1 2 . . 1 Alerts 2 | . . . . . . . . 1 . . . . . 1 . Weapon Failures 5 | . . . . . . . . . . 5 . . . . . Overload Shots . | . . . . . . . . . . . . . . . . Overflow Damage 901 | . . . . . . 182 407 . 29 139 64 57 . . 23 Projectiles 211 | . . . . . . . 76 . 16 . 64 32 . . 23 Explosions 157 | . . . . . . . . . 13 139 . 5 . . . Melee 533 | . . . . . . 182 331 . . . . 20 . . . Knockbacks 4 | . . . . . . . . . . . . 3 . . 1 Impact . | . . . . . . . . . . . . . . . . Kinetic 4 | . . . . . . . . . . . . 3 . . 1 Secondary . | . . . . . . . . . . . . . . . . Self-Inflicted Damage 205 | . . . . . . . 1 . 40 76 . 88 . . . Shots 4 | . . . . . . . . . 1 1 . 2 . . . Rammed 3 | . . . . . . . 1 . . . . 2 . . . Targets Rammed 3 | . . . . . . . 1 . . . . 2 . . . Kicked . | . . . . . . . . . . . . . . . . Crushed . | . . . . . . . . . . . . . . . . Highest Temperature 477 | . . 36 10 175 . 24 231 209 372 461 300 477 245 255 190 Average Temperature 84 | . . 12 5 74 . 4 65 63 107 110 89 93 87 89 72 Received Heat Transfer 3346 | . . 15 153 172 . 66 298 63 . 823 105 1025 243 11 372 Effects 7 | . . . . . . . . . 2 1 2 2 . . . Energy Bleed 1 | . . . . . . . . . . 1 . . . . . Interference 5 | . . . . . . . . . 1 . 2 2 . . . Short Circuit 1 | . . . . . . . . . 1 . . . . . . Siege Activations 17 | . . . . . . . . 1 . 6 2 7 . . 1 Total Turns 791 | . . . . . . . . 12 . 262 15 462 . . 40 Longest Duration 250 | . . . . . . . . 12 . 102 10 250 . . 40 Robots Corrupted 8 | . . . . . . . 1 . . 2 . 5 . . . Combat Hostiles 6 | . . . . . . . 1 . . 2 . 3 . . . Parts Fried 23 | . . . . . . . . . . 10 . 13 . . . Impact Corruptions 4 | . . . . . . . 3 . . . . 1 . . . Robots Melted 2 | . . . . . . . 1 . . . . . 1 . . Combat Hostiles 2 | . . . . . . . 1 . . . . . 1 . . Parts Melted 12 | . . 3 . . . . 3 . 2 1 . 3 . . . Heat Transferred 5948 | . . . . . . . 1036 481 729 1511 296 1263 407 74 151 Parts Sabotaged . | . . . . . . . . . . . . . . . . Parts Stolen . | . . . . . . . . . . . . . . . . Parts Stripped . | . . . . . . . . . . . . . . . . Power Chain Reactions 10 | . . . . . . . . . 3 2 . 5 . . . Alert | -11 -10 -10 -10 -8 -8 -6 -6 -6 -6 -6 -5 -4 -4 -4 -4 ------- Run | Yrd Mat Min Sub Rec Scr Fac Ext Cet Arc Hub Fac Fac Upp Upp War Peak Influence 1525 | 10 15 208 . 239 . 319 462 347 348 1525 763 841 . . . Initial 708 | . 6 5 . 113 . . 135 258 120 5 708 373 . . . Average 309 | 4 13 78 . 75 . 99 208 295 177 627 617 380 . . . Maximum Alert Level 4 | . . 1 . 1 . 1 2 1 1 4 3 3 . . . Low Security (%) 50 | 100 100 99 . 99 . 86 50 12 63 12 . 43 . . . Level 1 18 | . . . . . . 13 33 87 36 28 . 11 . . . Level 2 19 | . . . . . . . 16 . . 21 75 26 . . . Level 3 9 | . . . . . . . . . . 18 24 19 . . . Level 4 2 | . . . . . . . . . . 19 . . . . . Level 5 . | . . . . . . . . . . . . . . . . High Security . | . . . . . . . . . . . . . . . . Max Security . | . . . . . . . . . . . . . . . . Squads Dispatched 51 | . 1 2 . . . 10 2 . . 12 10 14 . . . Investigation 17 | . 1 1 . . . 6 2 . . 1 2 4 . . . Extermination 11 | . . . . . . 2 . . . 3 3 3 . . . Reinforcement 16 | . . . . . . 1 . . . 7 4 4 . . . Assault 4 | . . 1 . . . . . . . 1 1 1 . . . Garrison 3 | . . . . . . 1 . . . . . 2 . . . Intercept . | . . . . . . . . . . . . . . . . Searches Triggered . | . . . . . . . . . . . . . . . . Construction Impeded 4 | . . . . . . . . . . . 2 2 . . . Haulers Reinforced . | . . . . . . . . . . . . . . . . Active Scanning Responses . | . . . . . . . . . . . . . . . . Cargo Convoy Interrupts . | . . . . . . . . . . . . . . . . Stealth | -11 -10 -10 -10 -8 -8 -6 -6 -6 -6 -6 -5 -4 -4 -4 -4 --------- Run | Yrd Mat Min Sub Rec Scr Fac Ext Cet Arc Hub Fac Fac Upp Upp War Distress Signals 8 | . . . . . . 2 2 2 . 2 . . . . . Communications Jammed 2 | . . . . . . . . . . . . 2 . . . Distress Signals 2 | . . . . . . . . . . . . 2 . . . Times Spotted 274 | . 1 12 9 5 . 26 38 10 11 45 20 55 5 1 36 Peak Tracking Total 9 | . 1 4 3 3 . 5 4 5 1 8 2 5 5 1 9 Tactical Retreats 16 | . . 1 1 . . 2 2 . . 7 1 2 . . . Traps | -11 -10 -10 -10 -8 -8 -6 -6 -6 -6 -6 -5 -4 -4 -4 -4 ------- Run | Yrd Mat Min Sub Rec Scr Fac Ext Cet Arc Hub Fac Fac Upp Upp War Traps Triggered 6 | . 1 . . . . . 2 . . . 2 1 . . . Indirectly . | . . . . . . . . . . . . . . . . Trap Hack Attempts . | . . . . . . . . . . . . . . . . Triggered . | . . . . . . . . . . . . . . . . Disarmed . | . . . . . . . . . . . . . . . . Reprogrammed . | . . . . . . . . . . . . . . . . Reused . | . . . . . . . . . . . . . . . . Traps Extracted . | . . . . . . . . . . . . . . . . Installed . | . . . . . . . . . . . . . . . . Triggered 11 | . . 1 1 . . . . . . . . . . 1 8 Objects Rigged 3 | . . . . . . . . . . 3 . . . . . Exploded 3 | . . . . . . . . . . 3 . . . . . Machines | -11 -10 -10 -10 -8 -8 -6 -6 -6 -6 -6 -5 -4 -4 -4 -4 ---------- Run | Yrd Mat Min Sub Rec Scr Fac Ext Cet Arc Hub Fac Fac Upp Upp War Machines Disabled 46 | . . . 1 . . . 3 . 3 22 7 9 . . 1 Max in Single Turn 7 | . . . . . . . . . 1 7 2 4 . . 1 Garrison Access 4 | . . . . . . 1 . . . . 1 2 . . . Network Hub 3 | . . . . . . . . . . 3 . . . . . Machines Repaired 1 | . . . . . . . . . . . 1 . . . . Machines Dismantled 1 | . . . . . . . . . . . 1 . . . . Machines Sabotaged . | . . . . . . . . . . . . . . . . Overloaded Fab Kills . | . . . . . . . . . . . . . . . . Hacking | -11 -10 -10 -10 -8 -8 -6 -6 -6 -6 -6 -5 -4 -4 -4 -4 --------- Run | Yrd Mat Min Sub Rec Scr Fac Ext Cet Arc Hub Fac Fac Upp Upp War Machines Accessed 83 | . 2 1 2 9 3 13 16 1 . 4 8 15 2 . 7 Terminals 40 | . 2 . . 6 . 5 14 1 . 4 2 6 . . . Fabricators 8 | . . . . . . 5 . . . . 2 1 . . . Repair Stations 5 | . . . . . . . 1 . . . 1 3 . . . Recycling Units 7 | . . . . 3 . 1 1 . . . 1 1 . . . Scanalyzers 4 | . . . . . . 1 . . . . 1 2 . . . Garrison Access 4 | . . . . . . 1 . . . . 1 2 . . . Total Hacks 302 | . 6 1 3 25 30 47 37 2 . 6 45 77 3 . 20 Successful 203 | . 3 1 3 17 30 30 22 1 . 2 21 50 3 . 20 Failed 99 | . 3 . . 8 . 17 15 1 . 4 24 27 . . . Catastrophic 14 | . . . . 1 . 1 3 . . 2 4 3 . . . Database Lockouts . | . . . . . . . . . . . . . . . . Manual 84 | . 6 . . 21 . 10 14 1 . 4 5 23 . . . Terminals 128 | . 6 . . 19 . 17 34 2 . 6 9 35 . . . Fabricators 29 | . . . . . . 19 . . . . 9 1 . . . Repair Stations 17 | . . . . . . . 2 . . . 3 12 . . . Recycling Units 15 | . . . . 6 . 3 1 . . . 2 3 . . . Scanalyzers 48 | . . . . . . 7 . . . . 18 23 . . . Garrison Access 8 | . . . . . . 1 . . . . 4 3 . . . Terminal Hacks 96 | . . 1 3 4 30 7 12 1 . 1 3 11 3 . 20 Record 52 | . . . 1 . 30 . . . . . . . 2 . 19 Part Schematic 4 | . . . . 2 . 1 . . . . . 1 . . . Robot Schematic 1 | . . . . . . . 1 . . . . . . . . Prototype ID Bank 2 | . . . . 1 . 1 . . . . . . . . . Open Door 13 | . . 1 1 . . . 8 1 . . . . 1 . 1 Branch Access Points 1 | . . . . . . . . . . . . 1 . . . Emergency Access Points 1 | . . . . . . . . . . 1 . . . . . Terminal Index 2 | . . . . 1 . . . . . . . 1 . . . Fabricator Index 2 | . . . . . . 1 . . . . . 1 . . . Scanalyzer Index 1 | . . . . . . 1 . . . . . . . . . Alert Level 2 | . . . . . . . 1 . . . 1 . . . . Unreport Threat 5 | . . . . . . 1 1 . . . 1 2 . . . Locate Traps 3 | . . . . . . . 1 . . . 1 1 . . . Recall Investigation 1 | . . . . . . . . . . . . 1 . . . Hauler Manifests 2 | . . . . . . 1 . . . . . 1 . . . Registered Components 1 | . . . . . . . . . . . . 1 . . . Zone Layout 2 | . . . . . . 1 . . . . . 1 . . . Release Object 1 | . . . 1 . . . . . . . . . . . . Fabricator Hacks 14 | . . . . . . 9 . . . . 5 . . . . Network Status 1 | . . . . . . . . . . . 1 . . . . Load Schematic 7 | . . . . . . 5 . . . . 2 . . . . Build 6 | . . . . . . 4 . . . . 2 . . . . Repair Station Hacks 13 | . . . . . . . 2 . . . 1 10 . . . Scan Component 7 | . . . . . . . 1 . . . 1 5 . . . Repair 6 | . . . . . . . 1 . . . . 5 . . . Recycling Unit Hacks 7 | . . . . 3 . 1 . . . . 1 2 . . . Report Inventory 6 | . . . . 3 . 1 . . . . 1 1 . . . Retrieve Components 1 | . . . . . . . . . . . . 1 . . . Scanalyzer 35 | . . . . . . 7 . . . . 8 20 . . . Insert Component 16 | . . . . . . 3 . . . . 5 8 . . . Analyze 19 | . . . . . . 4 . . . . 3 12 . . . Garrison Access Hacks 4 | . . . . . . 1 . . . . 1 2 . . . Seal Access 4 | . . . . . . 1 . . . . 1 2 . . . Unauthorized Hacks 34 | . 3 . . 10 . 5 8 . . 1 2 5 . . . Terminals 22 | . 3 . . 7 . 1 7 . . 1 . 3 . . . Track 1 | . . . . . . . . . . . . 1 . . . Assimilate 1 | . . . . . . 1 . . . . . . . . . Botnet 7 | . 1 . . 2 . . 2 . . . . 2 . . . Skim 12 | . 2 . . 5 . . 5 . . . . . . . . Sabotage 1 | . . . . . . . . . . 1 . . . . . Fabricators 5 | . . . . . . 3 . . . . 1 1 . . . Prioritize 1 | . . . . . . 1 . . . . . . . . . Recompile 4 | . . . . . . 2 . . . . 1 1 . . . Repair Stations 4 | . . . . . . 1 1 . . . 1 1 . . . Recycling Units 3 | . . . . 3 . . . . . . . . . . . Tunnel 3 | . . . . 3 . . . . . . . . . . . Scrapoids 4 | . . . . . . 1 1 . . . 1 1 . . . Scanalyzers . | . . . . . . . . . . . . . . . . Garrison Access . | . . . . . . . . . . . . . . . . Data Cores Recovered . | . . . . . . . . . . . . . . . . Used . | . . . . . . . . . . . . . . . . Hacking Detections 48 | . 2 . . 8 . 12 10 . . 2 6 8 . . . Full Trace Events 7 | . . . . 2 . 2 1 . . . . 2 . . . Feedback Events 1 | . . . . . . . . . . . . 1 . . . Corruption 1 | . . . . . . . . . . . . 1 . . . Feedback Blocked . | . . . . . . . . . . . . . . . . Robot Schematics Acquired 1 | . . . . . . . 1 . . . . . . . . Robots Built . | . . . . . . . . . . . . . . . . Authchips . | . . . . . . . . . . . . . . . . Time . | . . . . . . . . . . . . . . . . Total Robot Build Rating . | . . . . . . . . . . . . . . . . Part Schematics Acquired 70 | . . . . 2 8 22 8 2 2 4 4 14 1 1 2 Parts Built 10 | . . . . . . 7 . . . . 3 . . . . Authchips 4 | . . . . . . 3 . . . . 1 . . . . Time 440 | . . . . . . 318 . . . . 122 . . . . Total Part Build Rating 56 | . . . . . . 33 . . . . 23 . . . . Parts Repaired 6 | . . . . . . . 1 . . . . 5 . . . Time 434 | . . . . . . . 40 . . . . 394 . . . Parts Recycled . | . . . . . . . . . . . . . . . . Recycled Matter . | . . . . . . . . . . . . . . . . Retrieved Matter . | . . . . . . . . . . . . . . . . Retrieved Components 10 | . . . . . . . . . . . . 10 . . . Parts Scanalyzed 14 | . . . . . . 3 . . . . 4 7 . . . Part Schematics Acquired 14 | . . . . . . 3 . . . . 3 8 . . . Parts Damaged 4 | . . . . . . . . . . . 2 2 . . . Bothacking | -11 -10 -10 -10 -8 -8 -6 -6 -6 -6 -6 -5 -4 -4 -4 -4 ------------ Run | Yrd Mat Min Sub Rec Scr Fac Ext Cet Arc Hub Fac Fac Upp Upp War Used RIF Installer . | . . . . . . . . . . . . . . . . Robots Hacked 2 | . . . . . . . 1 . 1 . . . . . . Non-combat . | . . . . . . . . . . . . . . . . Combat 2 | . . . . . . . 1 . 1 . . . . . . Robot Hacks Applied 2 | . . . . . . . 1 . 1 . . . . . . parse_system 2 | . . . . . . . 1 . 1 . . . . . . Relay Couplers Released . | . . . . . . . . . . . . . . . . Fabnet Peak Effective % . | . . . . . . . . . . . . . . . . Robots Rewired 15 | . . . . 8 . . 6 . 1 . . . . . . Allies Hacked . | . . . . . . . . . . . . . . . . Hacks Repelled . | . . . . . . . . . . . . . . . . Allies | -11 -10 -10 -10 -8 -8 -6 -6 -6 -6 -6 -5 -4 -4 -4 -4 -------- Run | Yrd Mat Min Sub Rec Scr Fac Ext Cet Arc Hub Fac Fac Upp Upp War Total Allies 57 | . . 3 . 8 . 8 19 6 1 1 6 5 . . . Largest Group 10 | . . 2 2 8 8 8 10 8 7 1 6 5 . . . Highest-Rated Group 704 | . . 62 62 151 151 151 302 704 608 86 342 235 . . . Highest-Rated Ally 159 | . . 31 31 27 27 66 159 159 140 86 107 47 . . . Total Orders 10 | . . . . 1 2 . . 2 3 2 . . . . . STAY 5 | . . . . . 1 . . 1 2 1 . . . . . FOLLOW 4 | . . . . . 1 . . 1 1 1 . . . . . PICKUP 1 | . . . . 1 . . . . . . . . . . . Ally Attacks 611 | . . 29 24 4 . 138 185 52 32 70 50 27 . . . Total Damage 14567 | . . 414 335 56 . 2869 4442 1527 1294 1627 1384 619 . . . Kills 91 | . . 7 5 1 . 22 27 9 4 9 5 2 . . . Allies Corrupted 1 | . . . . . . . . . . 1 . . . . . Allies Melted . | . . . . . . . . . . . . . . . . Intel | -11 -10 -10 -10 -8 -8 -6 -6 -6 -6 -6 -5 -4 -4 -4 -4 ------- Run | Yrd Mat Min Sub Rec Scr Fac Ext Cet Arc Hub Fac Fac Upp Upp War Robot Analysis Total . | . . . . . . . . . . . . . . . . Derelict Logs Recovered 2 | . . . . . . . . . . . . . . 2 . Drone Launches . | . . . . . . . . . . . . . . . . Drone Recoveries . | . . . . . . . . . . . . . . . . Exploration | -11 -10 -10 -10 -8 -8 -6 -6 -6 -6 -6 -5 -4 -4 -4 -4 ------------- Run | Yrd Mat Min Sub Rec Scr Fac Ext Cet Arc Hub Fac Fac Upp Upp War Turns Passed 20918 | 99 303 568 360 1409 3789 1418 1956 624 1018 1659 1544 2998 1011 573 1589 Spaces Moved 11866 | 73 225 205 183 731 2482 2210 1301 206 261 604 723 1095 462 293 812 Core 129 | 9 . . . . 111 . 7 . . . . 1 . 1 . Treads 3542 | . . . . . . . 126 57 261 604 723 909 25 25 812 Legs . | . . . . . . . . . . . . . . . . Wheels 5176 | 64 225 205 183 731 2162 . 568 149 . . . 185 437 267 . Hover . | . . . . . . . . . . . . . . . . Flight 3019 | . . . . . 209 2210 600 . . . . . . . . Fastest Speed 20 | 50 95 155 155 150 32 20 28 142 160 160 160 150 100 110 162 Average Speed 123 | 85 118 155 155 150 129 32 102 175 170 160 160 168 149 168 167 Slowest Speed 3150 | 100 155 155 155 155 272 192 650 240 240 240 160 3050 435 3150 570 Overloaded Moves . | . . . . . . . . . . . . . . . . Propulsion Burnouts . | . . . . . . . . . . . . . . . . Robots Hopped 15 | . . . . . . 11 4 . . . . . . . . Cave-ins Triggered . | . . . . . . . . . . . . . . . . Exploration Rate (%) 54 | 5 29 30 15 97 92 36 92 66 96 59 17 32 71 49 86 Regions Visited 15 Branch Regions 11 Pre-discovered Areas 7 | . . . . 3 3 . 1 . . . . . . . . Known Exits Taken 9 | . . . . . 1 1 1 1 . 1 1 1 1 1 . Unknown Exits Taken 6 | 1 1 1 1 1 . . . . 1 . . . . . . Scrap Searched 9 | . . . . . 5 . . . . . . . 2 2 . Spaces Dug 51 | . . . . . . 7 1 . . 17 7 12 2 4 1 Terrain Destroyed 703 | . . . . . . 7 1 . 6 563 35 78 4 6 3 Melee 11 | . . . . . . 7 1 . . 3 . . . . . Projectile 179 | . . . . . . . . . 1 75 35 56 4 5 3 AOE 512 | . . . . . . . . . 5 485 . 22 . . . Terrain Rammed . | . . . . . . . . . . . . . . . . Walls Destroyed . | . . . . . . . . . . . . . . . . Machines Disabled . | . . . . . . . . . . . . . . . . Actions | -11 -10 -10 -10 -8 -8 -6 -6 -6 -6 -6 -5 -4 -4 -4 -4 --------- Run | Yrd Mat Min Sub Rec Scr Fac Ext Cet Arc Hub Fac Fac Upp Upp War Total 16958 | 93 252 434 231 1005 3059 2824 1812 459 786 1020 1004 1865 753 358 1003 Wait 3270 | . 2 202 1 173 498 420 282 161 468 167 136 425 247 27 61 Move 11822 | 72 224 204 182 730 2481 2188 1292 205 260 603 722 1094 461 292 812 Hop 14 | . . . . . . 10 4 . . . . . . . . Pick Up 251 | 7 16 5 6 2 35 40 29 21 2 9 24 27 7 6 15 Fast Attach 127 | 6 . . . . 13 25 18 10 7 5 . 18 5 4 16 Attach 66 | . 1 . . . 3 8 3 4 1 4 6 19 1 1 15 Detach 21 | . . . . . 4 1 1 5 . 3 . 2 . . 5 Swap 262 | 1 2 2 1 2 2 27 26 11 7 72 33 55 9 3 9 Drop 281 | . 2 7 20 4 23 54 21 31 7 13 21 27 8 10 33 Fire 611 | 7 5 14 21 21 . 5 52 11 29 135 52 192 15 15 37 Melee 82 | . . . . . . 45 32 . 1 4 . . . . . Ram 1 | . . . . . . . 1 . . . . . . . . Kick . | . . . . . . . . . . . . . . . . Crush 2 | . . . . . . . . . . . . 2 . . . Escape Stasis 26 | . . . . . . . 26 . . . . . . . . Rewire 102 | . . . . 73 . . 24 . 4 1 . . . . . Trap 3 | . . . . . . . . . . 3 . . . . . Miscellaneous 17 | . . . . . . 1 1 . . 1 10 4 . . . Route ------- -11/Scrapyard -10/Materials (discovered 2 exits: [*Mat] / *Min) -10/Mines -10/Subcaves (discovered 2 exits: [*Mat] / *Rec) -8/Recycling (discovered 2 exits: *Fac / *Scr) -8/Scraptown (discovered 2 exits: *Fac x2) -6/Factory (discovered 6 exits: *Fac x2 / *Low x2 / *Ext x2) -6/Extension (discovered 3 exits: *Fac x2 / *Cet) -6/Cetus (discovered 3 exits: *Fac x2 / *Arc) -6/Archives (discovered 3 exits: *Fac / *Hub x2) -6/Hub_04(d) (discovered 2 exits: *Fac x2) -5/Factory (discovered 2 exits: *Fac / Upp) -4/Factory (discovered 3 exits: *Upp x2 / Arm) -4/Upper Caves -4/Upper Caves (discovered 2 exits: Res / *War) -4/Warlord (discovered 1 exit: *Pro) History --------- Turn | Location | Event 4 | -11/Scrapyard | Discovered new exit (range 16) 100 | -11/Scrapyard | Entered Materials 187 | -10/Materials | Discovered new exit (range 12) 248 | -10/Materials | Discovered new exit (range 11) 315 | -10/Materials | Build established: Mutant 403 | -10/Materials | Entered Mines 612 | -10/Mines | Met a Derelict shopkeep closing up shop 729 | -10/Mines | Met a Derelict testing a Signal Generator 747 | -10/Mines | Found Signal Generator 962 | -10/Mines | Discovered new exit (range 5) 971 | -10/Mines | Entered Subcaves 971 | -10/Subcaves | Accompanied by 2 allies 976 | -10/Subcaves | Led the pair of lost Derelicts to an unsafe place 1150 | -10/Subcaves | Discovered new exit (range 11) 1179 | -10/Subcaves | Discovered new exit (range 15) 1286 | -10/Subcaves | Found SUBCON Basin 1331 | -10/Subcaves | Entered Recycling 2127 | -8/Recycling | Build established: Commander-Mutant 2144 | -8/Recycling | Discovered new exit (range 12) 2643 | -8/Recycling | Scanned before Scraplab entrance 2666 | -8/Recycling | Entered Scraplab 2719 | -8/Recycling | Discovered new exit (range 4) 2740 | -8/Recycling | Entered Scraptown 2740 | -8/Scraptown | Accompanied by 8 allies 3000 | -8/Scraptown | Visited TADAMA 3040 | -8/Scraptown | Visited Comm Corps 3102 | -8/Scraptown | Visited CR-KLE's Repair Center 3144 | -8/Scraptown | Visited Spacefarers 3195 | -8/Scraptown | Visited Cyclists 3219 | -8/Scraptown | Visited Symbiants 3250 | -8/Scraptown | Visited SPCMW 3662 | -8/Scraptown | Discovered new exit (range 11) 3808 | -8/Scraptown | Visited UFD Registry 3808 | -8/Scraptown | Registered with UFD as "Protogrid" 3850 | -8/Scraptown | Entered Cyclist Reading Room 3979 | -8/Scraptown | Visited Cartography Club 4016 | -8/Scraptown | Visited DA-N13 Charitable Foundation 4024 | -8/Scraptown | Found DCF Scrap (28 items) 4072 | -8/Scraptown | Visited Chapter 10 4261 | -8/Scraptown | Visited Modified Component R&D 4306 | -8/Scraptown | Visited Scrapoid Pod Storage 4331 | -8/Scraptown | Visited Supply Room 4388 | -8/Scraptown | Visited Junk Cannon Lab 4399 | -8/Scraptown | Found Prototype Special Weapon 4401 | -8/Scraptown | Identified Junk Cannon 4447 | -8/Scraptown | Visited Curators Association 4506 | -8/Scraptown | Visited Botcube Research 4601 | -8/Scraptown | Found Surveybot 17 Chip 4957 | -8/Scraptown | Found Deep Structural Scanner 4963 | -8/Scraptown | Learned 12 Materials zone layouts 4963 | -8/Scraptown | Learned 8 Research zone layouts 4963 | -8/Scraptown | Learned 4 Storage zone layouts 4963 | -8/Scraptown | Learned 8 Upper Caves zone layouts 4963 | -8/Scraptown | Learned 4 Recycling zone layouts 4963 | -8/Scraptown | Learned 20 Upper Caves zone layouts 4963 | -8/Scraptown | Learned 4 Armory zone layouts 4963 | -8/Scraptown | Learned location of 3 exits from Factory 4963 | -8/Scraptown | Learned Storage emergency access door positions 4963 | -8/Scraptown | Learned location of 2 exits from Research 4963 | -8/Scraptown | Learned location of 1 exit from Lower Caves 4963 | -8/Scraptown | Identified exit to Factory 5067 | -8/Scraptown | Found Botcube 5287 | -8/Scraptown | Tech Extrapolator generated special schematic: Machine Rigger 5521 | -8/Scraptown | Tech Extrapolator generated special schematic: Vmp. Humpback 6529 | -8/Scraptown | Entered Factory 6529 | -6/Factory | Accompanied by 8 allies 6529 | -6/Factory | Evolved 8 slots: Power x1, Propulsion x4, Utility x3 6530 | -6/Factory | Identified exit to Lower Caves 6531 | -6/Factory | Identified exit to Extension 6531 | -6/Factory | Identified exit to Factory 6849 | -6/Factory | Lost 8 allies 6869 | -6/Factory | Lost 4 parts (1p2n1u) 6947 | -6/Factory | Fabricated Mak. Light Armor Plating (x2) 6975 | -6/Factory | Fabricated Machine Rigger (x1) 6991 | -6/Factory | Fabricated Mak. Flight Unit (x2) 7040 | -6/Factory | Discovered exit to Lower Caves (range 14) 7119 | -6/Factory | Spotted B-75 Beast 7167 | -6/Factory | Tech Extrapolator generated special schematic: Energy Deflector 7175 | -6/Factory | Build established: Scavenger-Sprinter 7320 | -6/Factory | Scrapoids reinforcements arrived? 7384 | -6/Factory | Allies destroyed B-75 Beast 7420 | -6/Factory | Garrison activated, responded to threat 7442 | -6/Factory | Fabricated Adv. Sensor Array (x2) 7496 | -6/Factory | Discovered exit to Factory (range 15) 7556 | -6/Factory | Found Scrap Suit 7561 | -6/Factory | Found Scrap Suit 7626 | -6/Factory | Botcube activated 7648 | -6/Factory | Botcube completed mutation into wheeled form, armed with 2 guns. 7857 | -6/Factory | Botcube activated 7869 | -6/Factory | Botcube completed mutation into wheeled form, armed with 1 melee weapon. 7889 | -6/Factory | Found Botcube 7947 | -6/Factory | Entered Extension 7971 | -6/Extension | Spotted B-75 Beast 8014 | -6/Extension | Rescued a captive Derelict 8015 | -6/Extension | Rescued a captive Derelict 8076 | -6/Extension | Lost 4 parts (1p2n1w) 8124 | -6/Extension | Found Powered Armor 8127 | -6/Extension | Rescued a captive Derelict 8132 | -6/Extension | Rescued a captive Derelict 8134 | -6/Extension | Rescued a captive Derelict 8195 | -6/Extension | Rescued a captive Derelict 8226 | -6/Extension | Rescued a captive Derelict 8244 | -6/Extension | Rescued a captive Derelict 8321 | -6/Extension | Spotted B-75 Beast 8327 | -6/Extension | Destroyed B-75 Beast 8366 | -6/Extension | Destroyed B-75 Beast 8397 | -6/Extension | Lost 8 allies 8674 | -6/Extension | Discovered exit to Factory (range 13) 8722 | -6/Extension | Disrupted transfer network 8898 | -6/Extension | Rescued A7 8922 | -6/Extension | Build established: Scavenger-Mutant 9287 | -6/Extension | Scrapoid reinforcements arrived 9306 | -6/Extension | Repaired Force Rifle 9441 | -6/Extension | Rescued a captive Derelict 9518 | -6/Extension | Learned location of 1 exit from Proximity Caves 9563 | -6/Extension | Learned 4 Proximity Caves zone layouts 9605 | -6/Extension | Discovered new exit (range 6) 9617 | -6/Extension | Learned location of Upper Caves (-4) 9660 | -6/Extension | Identified exit to Cetus 9810 | -6/Extension | Found Scrap Suit 9903 | -6/Extension | Entered Cetus 9903 | -6/Cetus | Accompanied by 3 allies (A7) 9908 | -6/Cetus | Acquired a Cetus Manufacturing Module code from A7 9929 | -6/Cetus | Botcube activated 9951 | -6/Cetus | Botcube completed mutation into wheeled form, armed with 2 guns. 9968 | -6/Cetus | Spotted Cetus Guard 9968 | -6/Cetus | Spotted Cetus Guard 9970 | -6/Cetus | Spotted Cetus Guard 9970 | -6/Cetus | Spotted Cetus Guard 9983 | -6/Cetus | Allies destroyed Cetus Guard 9984 | -6/Cetus | Allies destroyed Cetus Guard 9989 | -6/Cetus | Allies destroyed Cetus Guard 9995 | -6/Cetus | Allies destroyed Cetus Guard 10164 | -6/Cetus | Escorted A7 to Cetus Mainframe 10182 | -6/Cetus | Started Cetus Manufacturing Module 10207 | -6/Cetus | Manufactured an Enhanced Grunt 10232 | -6/Cetus | Manufactured an Enhanced Grunt 10257 | -6/Cetus | Manufactured an Enhanced Grunt 10282 | -6/Cetus | Manufactured an Enhanced Grunt 10307 | -6/Cetus | Manufactured an Enhanced Grunt 10322 | -6/Cetus | Discovered new exit (range 15) 10365 | -6/Cetus | Spotted Cetus Guard 10366 | -6/Cetus | Spotted Cetus Guard 10369 | -6/Cetus | Spotted Cetus Guard 10369 | -6/Cetus | Spotted Cetus Guard 10379 | -6/Cetus | Allies destroyed Cetus Guard 10383 | -6/Cetus | Allies destroyed Cetus Guard 10384 | -6/Cetus | Allies destroyed Cetus Guard 10386 | -6/Cetus | Allies destroyed Cetus Guard 10405 | -6/Cetus | Found Prototype Device 10425 | -6/Cetus | Met Revision 17 10426 | -6/Cetus | Destroyed Revision 17 10444 | -6/Cetus | Identified Exp. Thermal Shield 10524 | -6/Cetus | Identified exit to Archives 10527 | -6/Cetus | Entered Archives 10527 | -6/Archives | Accompanied by 7 allies (A7) 10532 | -6/Archives | Received a hacking code to weaken MAIN.C 10636 | -6/Archives | Discovered new exit (range 15) 10665 | -6/Archives | Discovered exit to Factory (range 16) 10905 | -6/Archives | System corruption reached 10% 11349 | -6/Archives | Discovered new exit (range 15) 11545 | -6/Archives | Entered Hub_04(d) 11545 | -6/Hub_04(d) | Accompanied by 1 ally 11750 | -6/Hub_04(d) | Network Hub disabled 11834 | -6/Hub_04(d) | Discovered exit to Factory (range 9) 11920 | -6/Hub_04(d) | Discovered exit to Factory (range 15) 12267 | -6/Hub_04(d) | Spotted Lightning 12280 | -6/Hub_04(d) | Destroyed Lightning 12283 | -6/Hub_04(d) | Spotted Lightning 12289 | -6/Hub_04(d) | Destroyed Lightning 12290 | -6/Hub_04(d) | Spotted Lightning 12315 | -6/Hub_04(d) | Destroyed Lightning 12393 | -6/Hub_04(d) | Found Prototype Processor 12393 | -6/Hub_04(d) | Identified Exp. Targeting Computer 12402 | -6/Hub_04(d) | Found Prototype Device 12416 | -6/Hub_04(d) | Identified Exp. EM Disruption Field 12419 | -6/Hub_04(d) | Found Prototype Energy Cannon 12419 | -6/Hub_04(d) | Identified EMDS 12579 | -6/Hub_04(d) | Spotted Lightning 12581 | -6/Hub_04(d) | Spotted Lightning 12583 | -6/Hub_04(d) | Spotted Lightning 12636 | -6/Hub_04(d) | Destroyed Lightning 12660 | -6/Hub_04(d) | Destroyed Lightning 12683 | -6/Hub_04(d) | Destroyed Lightning 12700 | -6/Hub_04(d) | Botcube activated 12722 | -6/Hub_04(d) | Botcube completed mutation into wheeled form, armed with 1 gun, 1 cannon. 12733 | -6/Hub_04(d) | Found Prototype Device 12734 | -6/Hub_04(d) | Identified Exp. Phase Shifter 12776 | -6/Hub_04(d) | Tech Extrapolator generated special schematic: Vmp. Brace Plating 12878 | -6/Hub_04(d) | Network Hub disabled 12883 | -6/Hub_04(d) | Network Hub disabled 12945 | -6/Hub_04(d) | First assault squad dispatched 12994 | -6/Hub_04(d) | Found Botcube 13204 | -6/Hub_04(d) | Entered Factory 13204 | -5/Factory | Evolved 2 slots: Utility x2 13205 | -5/Factory | Identified exit to Upper Caves 13468 | -5/Factory | Fabricated Mak. Sensor Array? 13525 | -5/Factory | Build established: Scavenger-Skirmisher 13862 | -5/Factory | Fabricated Biometal Medium Treads (x2) 13987 | -5/Factory | Botcube activated 14009 | -5/Factory | Botcube completed mutation into treaded form, armed with 1 cannon. 14234 | -5/Factory | Scrapoids reinforcements arrived? 14479 | -5/Factory | Lost 4 allies 14665 | -5/Factory | Discovered new exit (range 10) 14679 | -5/Factory | Identified exit to Factory 14704 | -5/Factory | First assault squad dispatched 14748 | -5/Factory | Entered another Factory area 14748 | -4/Factory | Evolved 2 slots: Utility x2 14764 | -4/Factory | Identified exit to Upper Caves 14764 | -4/Factory | Identified exit to Armory 14915 | -4/Factory | Repaired Broken Centrium Heavy Treads 15007 | -4/Factory | Found Prototype Hackware 15158 | -4/Factory | Identified Exp. Hacking Suite 15268 | -4/Factory | Repaired Centrium Heavy Treads? 15418 | -4/Factory | Repaired Centrium Heavy Treads 15665 | -4/Factory | Found Prototype Processor 15665 | -4/Factory | Identified Exp. Signal Interpreter 15807 | -4/Factory | Repaired Broken Neutron Cannon 15906 | -4/Factory | Repaired Centrium Heavy Treads 16417 | -4/Factory | Destroyed 8 combat bots 16485 | -4/Factory | Garrison activated, responded to threat 16504 | -4/Factory | Build established: Scavenger-Mutant 16554 | -4/Factory | Lost 5 parts (2p1n2w) 16582 | -4/Factory | Found Prototype Device 16844 | -4/Factory | Scrapoids reinforcements arrived? 16891 | -4/Factory | Found Quantum Capacitor 16940 | -4/Factory | Lost 5 allies 16966 | -4/Factory | Lost 4 parts (1p1n2w) 17248 | -4/Factory | First assault squad dispatched 17610 | -4/Factory | Lost 3 parts (1p1u1w) 17746 | -4/Factory | Entered Upper Caves 17747 | -4/Upper Caves | Identified exit to Upper Caves 17751 | -4/Upper Caves | Encountered a Warlord checkpoint 17952 | -4/Upper Caves | Attacked by a faux Warlord 18001 | -4/Upper Caves | Lost 3 parts (2p1n) 18237 | -4/Upper Caves | Build established: Hacker-Mutant 18757 | -4/Upper Caves | Entered another Upper Caves area 18758 | -4/Upper Caves | Identified exit to Warlord 18758 | -4/Upper Caves | Identified exit to Research 18991 | -4/Upper Caves | Learned Research emergency access door positions 19108 | -4/Upper Caves | Build established: Scavenger-Skirmisher 19330 | -4/Upper Caves | Entered Warlord 19331 | -4/Warlord | Identified exit to Proximity Caves 19380 | -4/Warlord | System corruption reached 10% 19414 | -4/Warlord | System corruption cleaned by Quarantine Array 19585 | -4/Warlord | Found Prototype Device 19585 | -4/Warlord | Identified Minesniffer Drone Bay 19734 | -4/Warlord | Received a Watcher feed algorithm from an ecstatic Tinkerer 20055 | -4/Warlord | Learned Armory security intel 20055 | -4/Warlord | Learned Factory fabricator intel 20055 | -4/Warlord | Learned Armory recycling unit intel 20055 | -4/Warlord | Learned Research recycling unit intel 20055 | -4/Warlord | Learned 4 Research zone layouts 20055 | -4/Warlord | Learned 4 Quarantine zone layouts 20058 | -4/Warlord | Learned Research stockpile data 20246 | -4/Warlord | Rebuked by Warlord 20254 | -4/Warlord | Warlord's base attacked by MAIN.C 20281 | -4/Warlord | Found Prototype Reactor 20281 | -4/Warlord | Identified Vortex Chain Reactor 20288 | -4/Warlord | Found Prototype Device 20288 | -4/Warlord | Identified Exp. Cloaking Device 20311 | -4/Warlord | Found Prototype Device 20311 | -4/Warlord | Identified Exp. Focal Shield 20338 | -4/Warlord | Found Prototype Processor 20511 | -4/Warlord | Found Prototype Energy Cannon 20511 | -4/Warlord | Identified Vortex Cannon 20515 | -4/Warlord | Found Vortex Cannon 20580 | -4/Warlord | Build established: Hacker-Mutant 20604 | -4/Warlord | Warlord forces counterattacked 20650 | -4/Warlord | Found Prototype Ballistic Cannon 20650 | -4/Warlord | Identified Hvy. Autocannon 20664 | -4/Warlord | Spotted Striker 20666 | -4/Warlord | Lost 5 allies 20725 | -4/Warlord | Spotted Striker 20755 | -4/Warlord | Destroyed Striker 20826 | -4/Warlord | Spotted Executioner 20835 | -4/Warlord | Spotted Striker 20848 | -4/Warlord | Lost 22 allies 20856 | -4/Warlord | Core integrity fell below 50% 20883 | -4/Warlord | Core integrity fell below 20% 20887 | -4/Warlord | Destroyed Executioner 20891 | -4/Warlord | Destroyed Striker 20899 | -4/Warlord | Identified Exp. Target Analyzer 20909 | -4/Warlord | Spotted Striker 20919 | -4/Warlord | Destroyed by P-80 Master with Gamma Rifle Last Messages --------------- 20887_ Executioner destroyed. 20888_ Spk. Medium Treads destroyed. 20890_ Vortex Chain Reactor destroyed. 20890_ Adv. Hardlight Generator destroyed. 20891_ Striker destroyed. 20892_ System corrupted: Matter fused (-6). 20893_ G-73 Enforcer destroyed. 20897_ G-67 Veteran destroyed. 20899_ Identified Exp. Target Analyzer. 20900_ Dropped Hvy. Autocannon. 20906_ Acquired Arm. Medium Treads. 20908_ Acquired 93 matter. 20911_ System corrupted: Substantial component data lost. 20912_ Destroyed Antigrav System. 20914_ P-70 Sage suffers critical hit (Sunder). 20914_ P-70 Sage Hpw. Shock Rifle ripped off. 20914_ P-70 Sage Imp. Heat Sink ripped off. 20914_ P-70 Sage destroyed. 20916_ Striker suffers critical hit (Sunder). 20916_ Striker Prototype Protection ripped off. Map ----- +----------------------------------------------------+ | """ # ????????????##### ????????????????#### | | # ""????????????#### ??????????????? ## | | + ""????????????#### ????????????? > # | | #+## # ""????????????#### ???????????? # | | # # ????????????#### ??????????? ## | | # # ????????????##### ###### ### | | # # ?????????????????## ####### ### | | # ####?????????????????### ####### #### | | # ####?????????????????#### ####### ##### | | # #####????????????????#### ##### ##### | | # ######???????????????#### ### | | # ######???????????????##### ### ### # | | ##+# ########""####???????###### #### | | #######""####???????######## #### | | ######""########????####### ### # | | #######""#################### ^ ### # | | ######= #######""##################### ^ ### # | | ######%![#######""###################### #### | | ### [[ !=# ""=[ "################### ### # | | ###*!= =*=!!=[%=""[[%*=""""""" ""######### # ## | | ###=%[ = !]%!!!%""]=!%! !"""=["######### ### | | [!!!==[ /!!/!%!%[[!%%%%=!!!=%;##=%##[%][!! ### | | %%!!!!=/ =[*!%%[/!%%=%*=[=%=/Kp=[[%%=!=[* ## | | %!%==%=/*=%= %%%[%%%=!*!!=!/p=[*!**%*!## ## | | = *%!!*/%[%==*= ![!*=[=[!!===#*#===%!=]## ## | | =*[ !![%=[! ""%%[=*=%@!!%![["##### *##### ## | | "% ! [%%%[[!=""!*==*!/ =[!%%""##### ##### ^ # | | # =%! == # !!""!* %!!#%############ #### # # | | ####!! ######;""#;;;]############### ### # | | #######""# # ############### ### # | | #######"";################# ### ## | | """" #######""########?????##### #### ## | | """" #######""####?????????#### ##### ### | | """" #######""####?????????#### ###### ### | | """" ####??????????????????#### ####### ### | | ####??????????????????#### ######## ### | | ####??????????????????#### ######## ## | | #### ####??????????????????### ###### ^ ## | | #### ####??????????????????## ?#### ## | | #### #####?????????????????## ## ? ### ## | | ###### ############?????????????????? ## ## | | ###### ############?????????????????? ## ## | | ###### ############?????????????????? ## ### | | ##### ###########??????????????????# ### | | ##### ##"""""####??????????????????### #### | | ##""X""####??????????????????########### | | ##### # ""####??????????????????########### | | ##### + X"####??????????????????########### | | ########### ""####??????????????????########### | | ############""X""####????????????????????????????? | +----------------------------------------------------+ Best States ------------- Heat Dissipation 74 Coolant Potential 100 Energy Generation 55 Energy Capacity 700 Matter Stores 300 Matter Capacity 300 Sight Range 22 Robot Scan Range 19 Terrain Scan Range 16 Terrain Scan Density 10 Jamming Range 14 Cloak Strength 4 Additional Mass Support 9 Armor Coverage 450 Resistance: KI 30 Resistance: TH 30 Resistance: EM 75 Utility Shielding 90 Evasion (%) 66 Target Analysis 10 Recoil Reduction 6 Offensive Hacking 30 Authchip Count 2 Item Schematics ----------------- Huge Storage Unit | -8/Recycling | Hacked Hcp. Storage Unit | -8/Recycling | Hacked Mak. Leg | -8/Scraptown | Extrapolated Mak. Light Armor Plating | -8/Scraptown | Extrapolated Machine Rigger | -8/Scraptown | Extrapolated Vmp. Humpback | -8/Scraptown | Extrapolated Spk. Treads | -8/Scraptown | Extrapolated Structural Scanner | -8/Scraptown | Extrapolated 0b10 Decoder Chip [Scout] | -8/Scraptown | Extrapolated Mak. Targeting Computer | -8/Scraptown | Extrapolated Mak. Terrain Scan Processor | -6/Factory | Extrapolated Spk. Medium Treads | -6/Factory | Extrapolated Mak. Flight Unit | -6/Factory | Extrapolated 0b10 Decoder Chip [Generic] | -6/Factory | Extrapolated 0b10 Decoder Chip [Skirmisher] | -6/Factory | Extrapolated Mak. Kinetic Plating | -6/Factory | Extrapolated Beamcaster | -6/Factory | Extrapolated Adv. Sensor Array | -6/Factory | Hacked Mak. Trap Scanner | -6/Factory | Extrapolated Exp. Utility Shielding | -6/Factory | Scanalyzed CPS Tube | -6/Factory | Scanalyzed Cloaking Device | -6/Factory | Scanalyzed Energy Deflector | -6/Factory | Extrapolated Mak. Hacking Suite | -6/Factory | Extrapolated Mak. System Restoration Module | -6/Factory | Extrapolated Mak. Power Source | -6/Factory | Extrapolated Mak. Coolant Network | -6/Factory | Extrapolated Mak. Core Shielding | -6/Factory | Extrapolated Mak. Thermal Plating | -6/Factory | Extrapolated Hvy. Beamcaster | -6/Factory | Extrapolated Mak. Shrapnel Gun | -6/Factory | Extrapolated Battle Cannon | -6/Factory | Extrapolated Multitool | -6/Extension | Extrapolated Mak. Terrain Scanner | -6/Extension | Extrapolated Plasma Flamer | -6/Extension | Extrapolated Mak. Spear | -6/Extension | Extrapolated Tactical Coordination Suite | -6/Extension | Extrapolated Mak. System Shield | -6/Extension | Extrapolated Mak. Laser | -6/Extension | Extrapolated Hvy. Battle Rifle | -6/Extension | Extrapolated Mak. Sensor Array | -6/Cetus | Extrapolated Mak. ECM Suite | -6/Cetus | Extrapolated Mak. Medium Armor Plating | -6/Archives | Extrapolated Mak. Ablative Armor | -6/Archives | Extrapolated Humpback | -6/Hub_04(d) | Extrapolated Enh. Flamer | -6/Hub_04(d) | Extrapolated Vmp. Brace Plating | -6/Hub_04(d) | Extrapolated Mak. Propulsion Shielding | -6/Hub_04(d) | Extrapolated Mak. Transmission Jammer | -5/Factory | Extrapolated Centrium Heavy Treads | -5/Factory | Scanalyzed Imp. Remote Force Field | -5/Factory | Scanalyzed Imp. Transmission Jammer | -5/Factory | Scanalyzed Nova Cannon | -4/Factory | Hacked Exp. Phase Shifter | -4/Factory | Scanalyzed Neutron Cannon | -4/Factory | Scanalyzed Adv. Coolant Injector | -4/Factory | Scanalyzed Adv. Cooling System | -4/Factory | Scanalyzed Centrium Medium Armor Plating | -4/Factory | Scanalyzed Antimatter Reactor | -4/Factory | Scanalyzed Adv. Targeting Computer | -4/Factory | Scanalyzed Adv. Variable Charge Gun | -4/Factory | Scanalyzed 0b10 Decoder Chip [Looter] | -4/Factory | Extrapolated Bore Cannon | -4/Factory | Extrapolated Mak. Heavy Armor Plating | -4/Factory | Extrapolated Mak. Salvage Targeting Computer | -4/Factory | Extrapolated Mak. Cloaking Device | -4/Factory | Extrapolated Imp. Arc Thrower | -4/Upper Caves | Extrapolated Mak. Hammer | -4/Upper Caves | Extrapolated Spk. Heavy Treads | -4/Warlord | Extrapolated Arc Thrower | -4/Warlord | Extrapolated Robot Schematics ------------------ P-60 Hacker | -6/Extension | Hacked Fabricated ------------ Mak. Light Armor Plating | x2 | -6/Factory | Authchip Machine Rigger | x1 | -6/Factory | Authchip Mak. Flight Unit | x2 | -6/Factory | Authchip Adv. Sensor Array | x2 | -6/Factory Mak. Sensor Array | x1 | -5/Factory | Authchip Biometal Medium Treads | x2 | -5/Factory | Preloaded Alien Tech Used ----------------- None Achievements -------------- None Challenges ------------ None Game ------ Seed ChainParticleLattice Manual? 0 Play Time 06:14:47 Cumulative 528.3 hours Start 2024.09.21 @ 14:28:10 End 2024.09.29 @ 15:17:02 Sessions 7 Manual Loads 0 Difficulty Rogue Special Mode None Game No. 201 Rogue 197 Adventurer 4 Explorer 0 Win Type - Total 7 Types 4/1/0/1/0/1/0/0/0 Lore% 87 Gallery% 91 Achievement% 87 Wizard Run 0 Options --------- Layout 0 ASCII 0 Keyboard 0 Movement Numpad Keybinds 0 Fullscreen 2 Font 18/CogNarrow Map View 76x50 Zoom Use 0% Tactical HUD 1 Map Filters NONE Filters NONE Steam 1 RUN: 14bf22e5-eb62-4805-bef2-9ad8a1225f88